{"text_format":"1","workbook":"xlsx","n_sheets":9,"sheets":["MENU","Lançamentos","Formulário","DADOS","EMPRESTIMOS","TOTAL EMPRESTADO","GRÁFICOS","TOTALIZAÇÃO","RELATÓRIO DE GASTOS MENSAIS"],"not_rendered":{"charts":1,"images":12,"macros":1,"external_links":0,"defined_names":4,"comments":2,"pivot_tables":1},"unopened":[],"bounds":{"document_bytes":16777216,"sheet_cells":100000,"rows_first":2000,"rows_last":500,"rows_between":2000,"halvings":0,"cell_chars":16384,"cell_head_chars":4096},"cells_cut":0,"cells_raw":0,"read":"whole","date_system":"1900"}

{"sheet":"MENU","index":0,"n_rows":0,"n_cols":0,"rows_kept":0,"cut":false,"hidden":false,"merged":[]}

{"sheet":"Lançamentos","index":1,"n_rows":96,"n_cols":20,"rows_kept":96,"cut":false,"hidden":false,"merged":[]}
[]
[]
[]
[]
["ID","ANO","MÊS","DESCRIÇÃO","Nº.  PARCELAS","PARCELA   Nº.","VALOR","VENCIMENTO","PAGO/NÃO PAGO","SALDO EM HAVER","SITUAÇÃO","OBSERVAÇÕES","ALERTA",null,null,null,null,null,null,1]
[2,{"$f":"YEAR(Lançamentos!$H6)","v":2022},{"$f":"PROPER(TEXT(Lançamentos!$H$6:$H$96,\"Mmm\"))","v":"Jun"},"Combustivel - C3",1,1,300,"2022-06-01","PAGO",{"$f":"IF(I6=\"NÃO PAGO\",G6,\"R$ 0,00\")","v":"R$ 0,00"},{"$f":"IF(AND(F6=E6,I6=\"PAGO\"),\"QUITADO\",\"EM ANDAMENTO\")","v":"QUITADO"},null,{"$f":"IF(AND(H6<TODAY(),I6=\"NÃO PAGO\"),\"VENCIDO\",IF(AND(H6<TODAY(),I6=\"PAGO\"),\"EM DIA\",IF(AND(H6=TODAY(),I6=\"NÃO PAGO\"),\"VENCE HOJE\",IF(AND(H6=TODAY(),I6=\"PAGO\"),\"EM DIA\",IF(AND(H6>TODAY(),I6=\"NÃO PAGO\"),\"NÃO VENCIDO\",IF(AND(H6>TODAY(),I6=\"PAGO\"),\"EM DIA\"))))))","v":"EM DIA"}]
[3,{"$f":"YEAR(Lançamentos!$H7)","v":2022},{"$f":"PROPER(TEXT(Lançamentos!$H$6:$H$96,\"Mmm\"))","v":"Jun"},"Valmir - Pesquisa Vazamentos",1,1,100,"2022-06-01","PAGO","R$ 0,00","QUITADO",null,"EM DIA"]
[1,{"$f":"YEAR(Lançamentos!$H8)","v":2022},{"$f":"PROPER(TEXT(Lançamentos!$H$6:$H$96,\"Mmm\"))","v":"Jun"},"Almoço p/ Marli-Arthur - 1ª Quinz",1,1,315,"2022-06-01","PAGO","R$ 0,00","QUITADO","Pago até dia 15/06.","EM DIA"]
[4,{"$f":"YEAR(Lançamentos!$H9)","v":2022},{"$f":"PROPER(TEXT(Lançamentos!$H$6:$H$96,\"Mmm\"))","v":"Jun"},"Presente da Camila de Niver.",1,1,100,"2022-06-02","PAGO","R$ 0,00","QUITADO",null,"EM DIA"]
[5,{"$f":"YEAR(Lançamentos!$H10)","v":2022},{"$f":"PROPER(TEXT(Lançamentos!$H$6:$H$96,\"Mmm\"))","v":"Jun"},"Cartão SupperCard",1,1,134.22999999999999,"2022-06-03","PAGO","R$ 0,00","QUITADO",null,"EM DIA"]
[6,{"$f":"YEAR(Lançamentos!$H11)","v":2022},{"$f":"PROPER(TEXT(Lançamentos!$H$6:$H$96,\"Mmm\"))","v":"Jun"},"Hipercard",10,1,366.33,"2022-06-07","PAGO","R$ 0,00","EM ANDAMENTO",null,"EM DIA"]
[7,{"$f":"YEAR(Lançamentos!$H12)","v":2022},{"$f":"PROPER(TEXT(Lançamentos!$H$6:$H$96,\"Mmm\"))","v":"Jun"},"Cartão Quero Quero",1,1,180.48,"2022-06-08","PAGO","R$ 0,00","QUITADO",null,"EM DIA"]
[8,{"$f":"YEAR(Lançamentos!$H13)","v":2022},{"$f":"PROPER(TEXT(Lançamentos!$H$6:$H$96,\"Mmm\"))","v":"Jun"},"Fatura da TIM - WhatsApp",1,1,75.989999999999995,"2022-06-10","PAGO","R$ 0,00","QUITADO",null,"EM DIA"]
[9,{"$f":"YEAR(Lançamentos!$H14)","v":2022},{"$f":"PROPER(TEXT(Lançamentos!$H$6:$H$96,\"Mmm\"))","v":"Jun"},"IPTU 2022",10,4,284.69,"2022-06-10","PAGO","R$ 0,00","EM ANDAMENTO",null,"EM DIA"]
[10,{"$f":"YEAR(Lançamentos!$H15)","v":2022},{"$f":"PROPER(TEXT(Lançamentos!$H$6:$H$96,\"Mmm\"))","v":"Jun"},"Cartão Super Mano",1,1,59.65,"2022-06-12","PAGO","R$ 0,00","QUITADO",null,"EM DIA"]
[11,{"$f":"YEAR(Lançamentos!$H16)","v":2022},{"$f":"PROPER(TEXT(Lançamentos!$H$6:$H$96,\"Mmm\"))","v":"Jun"},"Compra de Ração e Remédios p/ cachorros e gatos",1,1,46.5,"2022-06-12","PAGO","R$ 0,00","QUITADO",null,"EM DIA"]
[12,{"$f":"YEAR(Lançamentos!$H17)","v":2022},{"$f":"PROPER(TEXT(Lançamentos!$H$6:$H$96,\"Mmm\"))","v":"Jun"},"Cartão Meu Cartão Renner",3,1,56.64,"2022-06-13","PAGO","R$ 0,00","EM ANDAMENTO",null,"EM DIA"]
[13,{"$f":"YEAR(Lançamentos!$H18)","v":2022},{"$f":"PROPER(TEXT(Lançamentos!$H$6:$H$96,\"Mmm\"))","v":"Jun"},"Recarga TV BOX",1,1,34.9,"2022-06-13","PAGO","R$ 0,00","QUITADO",null,"EM DIA"]
[14,{"$f":"YEAR(Lançamentos!$H19)","v":2022},{"$f":"PROPER(TEXT(Lançamentos!$H$6:$H$96,\"Mmm\"))","v":"Jun"},"Conta de Luz da Camila",1,1,136.35,"2022-06-13","PAGO","R$ 0,00","QUITADO",null,"EM DIA"]
[15,{"$f":"YEAR(Lançamentos!$H20)","v":2022},{"$f":"PROPER(TEXT(Lançamentos!$H$6:$H$96,\"Mmm\"))","v":"Jun"},"Cartão Credicard On",1,1,444.72,"2022-06-15","PAGO","R$ 0,00","QUITADO",null,"EM DIA"]
[16,{"$f":"YEAR(Lançamentos!$H21)","v":2022},{"$f":"PROPER(TEXT(Lançamentos!$H$6:$H$96,\"Mmm\"))","v":"Jun"},"Almoço p/ Marli-Arthur - 2ª Quinz",1,1,339,"2022-06-16","PAGO","R$ 0,00","QUITADO","Pago de 16/06 até dia 30/06","EM DIA"]
[17,{"$f":"YEAR(Lançamentos!$H22)","v":2022},{"$f":"PROPER(TEXT(Lançamentos!$H$6:$H$96,\"Mmm\"))","v":"Jun"},"Cartão Zaffari Bourbom","1","1",144.46,"2022-06-20","PAGO","R$ 0,00","QUITADO",null,"EM DIA"]
[18,{"$f":"YEAR(Lançamentos!$H23)","v":2022},{"$f":"PROPER(TEXT(Lançamentos!$H$6:$H$96,\"Mmm\"))","v":"Jun"},"Padaria do Aurélio",6,6,0,"2022-06-20","PAGO","R$ 0,00","QUITADO",null,"EM DIA"]
[19,{"$f":"YEAR(Lançamentos!$H24)","v":2022},{"$f":"PROPER(TEXT(Lançamentos!$H$6:$H$96,\"Mmm\"))","v":"Jun"},"Conta de Água Abr./22",1,1,91.7,"2022-06-20","PAGO","R$ 0,00","QUITADO",null,"EM DIA"]
[20,{"$f":"YEAR(Lançamentos!$H25)","v":2022},{"$f":"PROPER(TEXT(Lançamentos!$H$6:$H$96,\"Mmm\"))","v":"Jun"},"Cartão NUBank",1,1,518.03,"2022-06-22","PAGO","R$ 0,00","QUITADO",null,"EM DIA"]
[21,{"$f":"YEAR(Lançamentos!$H26)","v":2022},{"$f":"PROPER(TEXT(Lançamentos!$H$6:$H$96,\"Mmm\"))","v":"Jun"},"Financiamento BV - Citroen C3",36,15,329.96,"2022-06-22","PAGO","R$ 0,00","EM ANDAMENTO",null,"EM DIA"]
[22,{"$f":"YEAR(Lançamentos!$H27)","v":2022},{"$f":"PROPER(TEXT(Lançamentos!$H$6:$H$96,\"Mmm\"))","v":"Jun"},"Conta de Luz",1,1,134.55000000000001,"2022-06-23","PAGO","R$ 0,00","QUITADO",null,"EM DIA"]
[23,{"$f":"YEAR(Lançamentos!$H28)","v":2022},{"$f":"PROPER(TEXT(Lançamentos!$H$6:$H$96,\"Mmm\"))","v":"Jun"},"SEBRATEL",1,1,99.9,"2022-06-25","PAGO","R$ 0,00","QUITADO",null,"EM DIA"]
[24,{"$f":"YEAR(Lançamentos!$H29)","v":2022},{"$f":"PROPER(TEXT(Lançamentos!$H$6:$H$96,\"Mmm\"))","v":"Jun"},"IPVA C3",6,6,148.46,"2022-06-28","PAGO","R$ 0,00","QUITADO",null,"EM DIA"]
[25,{"$f":"YEAR(Lançamentos!$H30)","v":2022},{"$f":"PROPER(TEXT(Lançamentos!$H$6:$H$96,\"Mmm\"))","v":"Jun"},"Licenciamento do Carro - Detran",1,1,92,"2022-06-28","PAGO","R$ 0,00","QUITADO",null,"EM DIA"]
[29,{"$f":"YEAR(Lançamentos!$H31)","v":2022},{"$f":"PROPER(TEXT(Lançamentos!$H$6:$H$96,\"Mmm\"))","v":"Jul"},"Combustivel - C3",1,1,270,"2022-07-01","PAGO","R$ 0,00","QUITADO",null,"EM DIA"]
[45,{"$f":"YEAR(Lançamentos!$H32)","v":2022},{"$f":"PROPER(TEXT(Lançamentos!$H$6:$H$96,\"Mmm\"))","v":"Jul"},"Financiamento BV - Citroen C3",36,16,329.92,"2022-07-01","PAGO","R$ 0,00","EM ANDAMENTO","Vencimento em 30/06/2022","EM DIA"]
[28,{"$f":"YEAR(Lançamentos!$H33)","v":2022},{"$f":"PROPER(TEXT(Lançamentos!$H$6:$H$96,\"Mmm\"))","v":"Jul"},"Almoço p/ Marli-Arthur - 1ª Quinz",1,1,359,"2022-07-02","PAGO","R$ 0,00","QUITADO","Pagto. De R$ 20,00 Pote Sagú","EM DIA"]
[35,{"$f":"YEAR(Lançamentos!$H34)","v":2022},{"$f":"PROPER(TEXT(Lançamentos!$H$6:$H$96,\"Mmm\"))","v":"Jul"},"Compra de Ração e Remédios p/ cachorros e gatos",1,1,52,"2022-07-02","PAGO","R$ 0,00","QUITADO",null,"EM DIA"]
[26,{"$f":"YEAR(Lançamentos!$H35)","v":2022},{"$f":"PROPER(TEXT(Lançamentos!$H$6:$H$96,\"Mmm\"))","v":"Jul"},"Cartão SupperCard",1,1,153.04,"2022-07-03","PAGO","R$ 0,00","QUITADO",null,"EM DIA"]
[44,{"$f":"YEAR(Lançamentos!$H36)","v":2022},{"$f":"PROPER(TEXT(Lançamentos!$H$6:$H$96,\"Mmm\"))","v":"Jul"},"compra de gás de cozinha",1,1,98,"2022-07-04","PAGO","R$ 0,00","QUITADO",null,"EM DIA"]
[46,{"$f":"YEAR(Lançamentos!$H37)","v":2022},{"$f":"PROPER(TEXT(Lançamentos!$H$6:$H$96,\"Mmm\"))","v":"Jul"},"Boleto Nubank Marli",1,1,171.26,"2022-07-04","PAGO","R$ 0,00","QUITADO",null,"EM DIA"]
[30,{"$f":"YEAR(Lançamentos!$H38)","v":2022},{"$f":"PROPER(TEXT(Lançamentos!$H$6:$H$96,\"Mmm\"))","v":"Jul"},"Hipercard",1,1,363.83,"2022-07-07","PAGO",{"$f":"IF(I38=\"NÃO PAGO\",G38,\"R$ 0,00\")","v":"R$ 0,00"},{"$f":"IF(AND(F38=E38,I38=\"PAGO\"),\"QUITADO\",\"EM ANDAMENTO\")","v":"QUITADO"},null,{"$f":"IF(AND(H38<TODAY(),I38=\"NÃO PAGO\"),\"VENCIDO\",IF(AND(H38<TODAY(),I38=\"PAGO\"),\"EM DIA\",IF(AND(H38=TODAY(),I38=\"NÃO PAGO\"),\"VENCE HOJE\",IF(AND(H38=TODAY(),I38=\"PAGO\"),\"EM DIA\",IF(AND(H38>TODAY(),I38=\"NÃO PAGO\"),\"NÃO VENCIDO\",IF(AND(H38>TODAY(),I38=\"PAGO\"),\"EM DIA\"))))))","v":"EM DIA"}]
[31,{"$f":"YEAR(Lançamentos!$H39)","v":2022},{"$f":"PROPER(TEXT(Lançamentos!$H$6:$H$96,\"Mmm\"))","v":"Jul"},"Cartão Quero Quero",1,1,180.13,"2022-07-08","PAGO","R$ 0,00","QUITADO",null,"EM DIA"]
[48,{"$f":"YEAR(Lançamentos!$H40)","v":2022},{"$f":"PROPER(TEXT(Lançamentos!$H$6:$H$96,\"Mmm\"))","v":"Jul"},"Valmir - Troca Registro ",1,1,70,"2022-07-09","PAGO","R$ 0,00","QUITADO",null,"EM DIA"]
[49,{"$f":"YEAR(Lançamentos!$H41)","v":2022},{"$f":"PROPER(TEXT(Lançamentos!$H$6:$H$96,\"Mmm\"))","v":"Jul"},"Compras no Mercado à Dinheiro",1,1,40,"2022-07-09","PAGO","R$ 0,00","QUITADO",null,"EM DIA"]
[32,{"$f":"YEAR(Lançamentos!$H42)","v":2022},{"$f":"PROPER(TEXT(Lançamentos!$H$6:$H$96,\"Mmm\"))","v":"Jul"},"Fatura da TIM - WhatsApp",1,1,49.99,"2022-07-10","PAGO","R$ 0,00","QUITADO",null,"EM DIA"]
[33,{"$f":"YEAR(Lançamentos!$H43)","v":2022},{"$f":"PROPER(TEXT(Lançamentos!$H$6:$H$96,\"Mmm\"))","v":"Jul"},"IPTU 2022",10,5,284.69,"2022-07-10","PAGO","R$ 0,00","EM ANDAMENTO",null,"EM DIA"]
[34,{"$f":"YEAR(Lançamentos!$H44)","v":2022},{"$f":"PROPER(TEXT(Lançamentos!$H$6:$H$96,\"Mmm\"))","v":"Jul"},"Cartão Super Mano",1,1,110,"2022-07-12","PAGO","R$ 0,00","QUITADO",null,"EM DIA"]
[47,{"$f":"YEAR(Lançamentos!$H45)","v":2022},{"$f":"PROPER(TEXT(Lançamentos!$H$6:$H$96,\"Mmm\"))","v":"Jul"},"Bolachas do Joaquim",1,1,292,"2022-07-13","PAGO","R$ 0,00","QUITADO",null,"EM DIA"]
[36,{"$f":"YEAR(Lançamentos!$H46)","v":2022},{"$f":"PROPER(TEXT(Lançamentos!$H$6:$H$96,\"Mmm\"))","v":"Jul"},"Cartão Meu Cartão Renner",3,2,56.63,"2022-07-13","PAGO","R$ 0,00","EM ANDAMENTO",null,"EM DIA"]
[37,{"$f":"YEAR(Lançamentos!$H47)","v":2022},{"$f":"PROPER(TEXT(Lançamentos!$H$6:$H$96,\"Mmm\"))","v":"Jul"},"Conta de Luz da Camila",1,1,169.13,"2022-07-13","PAGO","R$ 0,00","QUITADO",null,"EM DIA"]
[38,{"$f":"YEAR(Lançamentos!$H48)","v":2022},{"$f":"PROPER(TEXT(Lançamentos!$H$6:$H$96,\"Mmm\"))","v":"Jul"},"Cartão Credicard On",1,1,292.45,"2022-07-15","PAGO","R$ 0,00","QUITADO",null,"EM DIA"]
[39,{"$f":"YEAR(Lançamentos!$H49)","v":2022},{"$f":"PROPER(TEXT(Lançamentos!$H$6:$H$96,\"Mmm\"))","v":"Jul"},"Almoço p/ Marli-Arthur - 2ª Quinz",1,1,346,"2022-07-16","PAGO","R$ 0,00","QUITADO",null,"EM DIA"]
[40,{"$f":"YEAR(Lançamentos!$H50)","v":2022},{"$f":"PROPER(TEXT(Lançamentos!$H$6:$H$96,\"Mmm\"))","v":"Jul"},"Cartão Zaffari Bourbom",1,1,151,"2022-07-20","PAGO","R$ 0,00","QUITADO",null,"EM DIA"]
[41,{"$f":"YEAR(Lançamentos!$H51)","v":2022},{"$f":"PROPER(TEXT(Lançamentos!$H$6:$H$96,\"Mmm\"))","v":"Jul"},"Conta de Água",1,1,91.62,"2022-07-20","PAGO","R$ 0,00","QUITADO",null,"EM DIA"]
[42,{"$f":"YEAR(Lançamentos!$H52)","v":2022},{"$f":"PROPER(TEXT(Lançamentos!$H$6:$H$96,\"Mmm\"))","v":"Jul"},"Cartão NUBank",1,1,514.26,"2022-07-22","PAGO","R$ 0,00","QUITADO",null,"EM DIA"]
[43,{"$f":"YEAR(Lançamentos!$H53)","v":2022},{"$f":"PROPER(TEXT(Lançamentos!$H$6:$H$96,\"Mmm\"))","v":"Jul"},"SEBRATEL",1,1,99.9,"2022-07-25","PAGO","R$ 0,00","QUITADO",null,"EM DIA"]
[27,{"$f":"YEAR(Lançamentos!$H54)","v":2022},{"$f":"PROPER(TEXT(Lançamentos!$H$6:$H$96,\"Mmm\"))","v":"Jul"},"Conta de Luz",1,1,137.59,"2022-07-26","PAGO","R$ 0,00","QUITADO",null,"EM DIA"]
[50,{"$f":"YEAR(Lançamentos!$H55)","v":2022},{"$f":"PROPER(TEXT(Lançamentos!$H$6:$H$96,\"Mmm\"))","v":"Ago"},"Combustivel - C3",1,1,250,"2022-08-01","PAGO","R$ 0,00","QUITADO",null,"EM DIA"]
[51,{"$f":"YEAR(Lançamentos!$H56)","v":2022},{"$f":"PROPER(TEXT(Lançamentos!$H$6:$H$96,\"Mmm\"))","v":"Ago"},"Financiamento BV - Citroen C3",1,1,330,"2022-08-01","PAGO","R$ 0,00","QUITADO","Vencimento em 29/07/2022","EM DIA"]
[52,{"$f":"YEAR(Lançamentos!$H57)","v":2022},{"$f":"PROPER(TEXT(Lançamentos!$H$6:$H$96,\"Mmm\"))","v":"Ago"},"Almoço p/ Marli-Arthur - 1ª Quinz",1,1,319,"2022-08-01","PAGO","R$ 0,00","QUITADO",null,"EM DIA"]
[65,{"$f":"YEAR(Lançamentos!$H58)","v":2022},{"$f":"PROPER(TEXT(Lançamentos!$H$6:$H$96,\"Mmm\"))","v":"Ago"},"Serviço de Capina - Irmão Sonia",1,1,60,"2022-08-02","PAGO","R$ 0,00","QUITADO",null,"EM DIA"]
[53,{"$f":"YEAR(Lançamentos!$H59)","v":2022},{"$f":"PROPER(TEXT(Lançamentos!$H$6:$H$96,\"Mmm\"))","v":"Ago"},"Cartão SupperCard",1,1,177.16,"2022-08-03","PAGO","R$ 0,00","QUITADO",null,"EM DIA"]
[70,{"$f":"YEAR(Lançamentos!$H60)","v":2022},{"$f":"PROPER(TEXT(Lançamentos!$H$6:$H$96,\"Mmm\"))","v":"Ago"},"Compra de Ração e Remédios p/ cachorros e gatos",1,1,44,"2022-08-03","PAGO","R$ 0,00","QUITADO",null,"EM DIA"]
[67,{"$f":"YEAR(Lançamentos!$H61)","v":2022},{"$f":"PROPER(TEXT(Lançamentos!$H$6:$H$96,\"Mmm\"))","v":"Ago"},"Pagamnetos para Dentista",2,1,250,"2022-08-05","PAGO","R$ 0,00","EM ANDAMENTO",null,"EM DIA"]
[54,{"$f":"YEAR(Lançamentos!$H62)","v":2022},{"$f":"PROPER(TEXT(Lançamentos!$H$6:$H$96,\"Mmm\"))","v":"Ago"},"Hipercard",1,1,133.76,"2022-08-07","PAGO","R$ 0,00","QUITADO",null,"EM DIA"]
[55,{"$f":"YEAR(Lançamentos!$H63)","v":2022},{"$f":"PROPER(TEXT(Lançamentos!$H$6:$H$96,\"Mmm\"))","v":"Ago"},"Cartão Quero Quero",1,1,169.06,"2022-08-08","PAGO","R$ 0,00","QUITADO",null,"EM DIA"]
[68,{"$f":"YEAR(Lançamentos!$H64)","v":2022},{"$f":"PROPER(TEXT(Lançamentos!$H$6:$H$96,\"Mmm\"))","v":"Ago"},"Bolachas do Joaquim",1,1,292,"2022-08-08","PAGO","R$ 0,00","QUITADO",null,"EM DIA"]
[56,{"$f":"YEAR(Lançamentos!$H65)","v":2022},{"$f":"PROPER(TEXT(Lançamentos!$H$6:$H$96,\"Mmm\"))","v":"Ago"},"Fatura da TIM - WhatsApp",1,1,49.9,"2022-08-10","PAGO","R$ 0,00","QUITADO",null,"EM DIA"]
[57,{"$f":"YEAR(Lançamentos!$H66)","v":2022},{"$f":"PROPER(TEXT(Lançamentos!$H$6:$H$96,\"Mmm\"))","v":"Ago"},"IPTU 2022",10,6,284.69,"2022-08-10","PAGO","R$ 0,00","EM ANDAMENTO",null,"EM DIA"]
[58,{"$f":"YEAR(Lançamentos!$H67)","v":2022},{"$f":"PROPER(TEXT(Lançamentos!$H$6:$H$96,\"Mmm\"))","v":"Ago"},"Cartão Super Mano",1,1,128.63999999999999,"2022-08-12","PAGO","R$ 0,00","QUITADO",null,"EM DIA"]
[59,{"$f":"YEAR(Lançamentos!$H68)","v":2022},{"$f":"PROPER(TEXT(Lançamentos!$H$6:$H$96,\"Mmm\"))","v":"Ago"},"Cartão Meu Cartão Renner",3,3,56.63,"2022-08-13","PAGO","R$ 0,00","QUITADO",null,"EM DIA"]
[60,{"$f":"YEAR(Lançamentos!$H69)","v":2022},{"$f":"PROPER(TEXT(Lançamentos!$H$6:$H$96,\"Mmm\"))","v":"Ago"},"Cartão Credicard On",1,1,167.38,"2022-08-15","PAGO","R$ 0,00","QUITADO",null,"EM DIA"]
[69,{"$f":"YEAR(Lançamentos!$H70)","v":2022},{"$f":"PROPER(TEXT(Lançamentos!$H$6:$H$96,\"Mmm\"))","v":"Ago"},"Conta de Luz da Camila",1,1,153.36000000000001,"2022-08-15","PAGO",{"$f":"IF(I70=\"NÃO PAGO\",G70,\"R$ 0,00\")","v":"R$ 0,00"},{"$f":"IF(AND(F70=E70,I70=\"PAGO\"),\"QUITADO\",\"EM ANDAMENTO\")","v":"QUITADO"},null,{"$f":"IF(AND(H70<TODAY(),I70=\"NÃO PAGO\"),\"VENCIDO\",IF(AND(H70<TODAY(),I70=\"PAGO\"),\"EM DIA\",IF(AND(H70=TODAY(),I70=\"NÃO PAGO\"),\"VENCE HOJE\",IF(AND(H70=TODAY(),I70=\"PAGO\"),\"EM DIA\",IF(AND(H70>TODAY(),I70=\"NÃO PAGO\"),\"NÃO VENCIDO\",IF(AND(H70>TODAY(),I70=\"PAGO\"),\"EM DIA\"))))))","v":"EM DIA"}]
[61,{"$f":"YEAR(Lançamentos!$H71)","v":2022},{"$f":"PROPER(TEXT(Lançamentos!$H$6:$H$96,\"Mmm\"))","v":"Ago"},"Almoço p/ Marli-Arthur - 2ª Quinz",1,1,422,"2022-08-17","PAGO","R$ 0,00","QUITADO",null,"EM DIA"]
[62,{"$f":"YEAR(Lançamentos!$H72)","v":2022},{"$f":"PROPER(TEXT(Lançamentos!$H$6:$H$96,\"Mmm\"))","v":"Ago"},"Cartão Zaffari Bourbom",1,1,136.84,"2022-08-20","PAGO","R$ 0,00","QUITADO",null,"EM DIA"]
[63,{"$f":"YEAR(Lançamentos!$H73)","v":2022},{"$f":"PROPER(TEXT(Lançamentos!$H$6:$H$96,\"Mmm\"))","v":"Ago"},"Cartão NUBank",1,1,428.91,"2022-08-22","PAGO","R$ 0,00","QUITADO",null,"EM DIA"]
[66,{"$f":"YEAR(Lançamentos!$H74)","v":2022},{"$f":"PROPER(TEXT(Lançamentos!$H$6:$H$96,\"Mmm\"))","v":"Ago"},"Conta de Luz",1,1,138.30000000000001,"2022-08-23","PAGO","R$ 0,00","QUITADO",null,"EM DIA"]
[84,{"$f":"YEAR(Lançamentos!$H75)","v":2022},{"$f":"PROPER(TEXT(Lançamentos!$H$6:$H$96,\"Mmm\"))","v":"Ago"},"Loja de Roupas Blitz",5,1,62.5,"2022-08-24","PAGO","R$ 0,00","EM ANDAMENTO",null,"EM DIA"]
[64,{"$f":"YEAR(Lançamentos!$H76)","v":2022},{"$f":"PROPER(TEXT(Lançamentos!$H$6:$H$96,\"Mmm\"))","v":"Ago"},"SEBRATEL",1,1,99.9,"2022-08-25","PAGO","R$ 0,00","QUITADO",null,"EM DIA"]
[72,{"$f":"YEAR(Lançamentos!$H77)","v":2022},{"$f":"PROPER(TEXT(Lançamentos!$H$6:$H$96,\"Mmm\"))","v":"Set"},"Combustivel - C3",1,1,200,"2022-09-01","PAGO","R$ 0,00","QUITADO",null,"EM DIA"]
[73,{"$f":"YEAR(Lançamentos!$H78)","v":2022},{"$f":"PROPER(TEXT(Lançamentos!$H$6:$H$96,\"Mmm\"))","v":"Set"},"Financiamento BV - Citroen C3",36,28,329,"2022-09-01","PAGO","R$ 0,00","EM ANDAMENTO","Vencimento em 31/08/2022","EM DIA"]
[85,{"$f":"YEAR(Lançamentos!$H79)","v":2022},{"$f":"PROPER(TEXT(Lançamentos!$H$6:$H$96,\"Mmm\"))","v":"Set"},"Almoço p/ Marli-Arthur - 1ª Quinz",1,1,282,"2022-09-01","PAGO","R$ 0,00","QUITADO","Até 15/09/2022","EM DIA"]
[83,{"$f":"YEAR(Lançamentos!$H80)","v":2022},{"$f":"PROPER(TEXT(Lançamentos!$H$6:$H$96,\"Mmm\"))","v":"Set"},"Pagamnetos para Dentista",1,1,350,"2022-09-02","PAGO","R$ 0,00","QUITADO",null,"EM DIA"]
[74,{"$f":"YEAR(Lançamentos!$H81)","v":2022},{"$f":"PROPER(TEXT(Lançamentos!$H$6:$H$96,\"Mmm\"))","v":"Set"},"Cartão SupperCard",1,1,208.18,"2022-09-03","PAGO","R$ 0,00","QUITADO",null,"EM DIA"]
[75,{"$f":"YEAR(Lançamentos!$H82)","v":2022},{"$f":"PROPER(TEXT(Lançamentos!$H$6:$H$96,\"Mmm\"))","v":"Set"},"Hipercard",1,1,292.44,"2022-09-07","PAGO","R$ 0,00","QUITADO",null,"EM DIA"]
[76,{"$f":"YEAR(Lançamentos!$H83)","v":2022},{"$f":"PROPER(TEXT(Lançamentos!$H$6:$H$96,\"Mmm\"))","v":"Set"},"Cartão Quero Quero",1,1,114.99,"2022-09-08","PAGO","R$ 0,00","QUITADO",null,"EM DIA"]
[77,{"$f":"YEAR(Lançamentos!$H84)","v":2022},{"$f":"PROPER(TEXT(Lançamentos!$H$6:$H$96,\"Mmm\"))","v":"Set"},"Bolachas do Joaquim",1,1,292,"2022-09-10","PAGO","R$ 0,00","QUITADO",null,"EM DIA"]
[78,{"$f":"YEAR(Lançamentos!$H85)","v":2022},{"$f":"PROPER(TEXT(Lançamentos!$H$6:$H$96,\"Mmm\"))","v":"Set"},"IPTU 2022",10,7,284.69,"2022-09-10","PAGO","R$ 0,00","EM ANDAMENTO",null,"EM DIA"]
[88,{"$f":"YEAR(Lançamentos!$H86)","v":2022},{"$f":"PROPER(TEXT(Lançamentos!$H$6:$H$96,\"Mmm\"))","v":"Set"},"Fatura da TIM - WhatsApp",1,1,49.9,"2022-09-10","PAGO","R$ 0,00","QUITADO",null,"EM DIA"]
[87,{"$f":"YEAR(Lançamentos!$H87)","v":2022},{"$f":"PROPER(TEXT(Lançamentos!$H$6:$H$96,\"Mmm\"))","v":"Set"},"Cartão Super Mano",1,1,171.07,"2022-09-12","PAGO","R$ 0,00","QUITADO",null,"EM DIA"]
[90,{"$f":"YEAR(Lançamentos!$H88)","v":2022},{"$f":"PROPER(TEXT(Lançamentos!$H$6:$H$96,\"Mmm\"))","v":"Set"},"Conta de Luz da Camila",1,1,128.56,"2022-09-13","PAGO","R$ 0,00","QUITADO",null,"EM DIA"]
[79,{"$f":"YEAR(Lançamentos!$H89)","v":2022},{"$f":"PROPER(TEXT(Lançamentos!$H$6:$H$96,\"Mmm\"))","v":"Set"},"Cartão Credicard On",1,1,227.04,"2022-09-15","PAGO","R$ 0,00","QUITADO",null,"EM DIA"]
[86,{"$f":"YEAR(Lançamentos!$H90)","v":2022},{"$f":"PROPER(TEXT(Lançamentos!$H$6:$H$96,\"Mmm\"))","v":"Set"},"Almoço p/ Marli-Arthur - 2ª Quinz",1,1,282,"2022-09-16","PAGO","R$ 0,00","QUITADO","A partir de 16/09/2022","EM DIA"]
[91,{"$f":"YEAR(Lançamentos!$H91)","v":2022},{"$f":"PROPER(TEXT(Lançamentos!$H$6:$H$96,\"Mmm\"))","v":"Set"},"Conta de Água",1,1,89.64,"2022-09-20","PAGO","R$ 0,00","QUITADO",null,"EM DIA"]
[80,{"$f":"YEAR(Lançamentos!$H92)","v":2022},{"$f":"PROPER(TEXT(Lançamentos!$H$6:$H$96,\"Mmm\"))","v":"Set"},"Cartão Zaffari Bourbom",1,1,137.36000000000001,"2022-09-20","PAGO","R$ 0,00","QUITADO",null,"EM DIA"]
[81,{"$f":"YEAR(Lançamentos!$H93)","v":2022},{"$f":"PROPER(TEXT(Lançamentos!$H$6:$H$96,\"Mmm\"))","v":"Set"},"Cartão NUBank",1,1,370.24,"2022-09-22","PAGO","R$ 0,00","QUITADO",null,"EM DIA"]
[89,{"$f":"YEAR(Lançamentos!$H94)","v":2022},{"$f":"PROPER(TEXT(Lançamentos!$H$6:$H$96,\"Mmm\"))","v":"Set"},"Conta de Luz",1,1,129.4,"2022-09-23","PAGO","R$ 0,00","QUITADO",null,"EM DIA"]
[82,{"$f":"YEAR(Lançamentos!$H95)","v":2022},{"$f":"PROPER(TEXT(Lançamentos!$H$6:$H$96,\"Mmm\"))","v":"Set"},"SEBRATEL",1,1,99.9,"2022-09-25","PAGO","R$ 0,00","QUITADO",null,"EM DIA"]
[92,{"$f":"YEAR(Lançamentos!$H96)","v":2022},{"$f":"PROPER(TEXT(Lançamentos!$H$6:$H$96,\"Mmm\"))","v":"Set"},"Almoço p/ Marli-Arthur - 1ª Quinz",1,1,235,"2022-09-26","NÃO PAGO",{"$f":"IF(I96=\"NÃO PAGO\",G96,\"R$ 0,00\")","v":235},{"$f":"IF(AND(F96=E96,I96=\"PAGO\"),\"QUITADO\",\"EM ANDAMENTO\")","v":"EM ANDAMENTO"},null,{"$f":"IF(AND(H96<TODAY(),I96=\"NÃO PAGO\"),\"VENCIDO\",IF(AND(H96<TODAY(),I96=\"PAGO\"),\"EM DIA\",IF(AND(H96=TODAY(),I96=\"NÃO PAGO\"),\"VENCE HOJE\",IF(AND(H96=TODAY(),I96=\"PAGO\"),\"EM DIA\",IF(AND(H96>TODAY(),I96=\"NÃO PAGO\"),\"NÃO VENCIDO\",IF(AND(H96>TODAY(),I96=\"PAGO\"),\"EM DIA\"))))))","v":"VENCE HOJE"}]

{"sheet":"Formulário","index":2,"n_rows":17,"n_cols":4,"rows_kept":17,"cut":false,"hidden":false,"merged":[[2,2,2,7],[6,3,6,7],[12,3,12,4],[16,3,16,4]]}
[]
[]
[null,null,"FORMULÁRIO DE CADASTRO DE CONTAS"]
[]
[null,null,"ID",{"$f":"MAX(Lançamentos!$A$6:$A$96)+1","v":93}]
[]
[null,null,"DESCRIÇÃO"]
[]
[null,null,"Nº.  PARCELAS"]
[]
[null,null,"PARCELA   Nº."]
[]
[null,null,"VALOR"]
[]
[null,null,"DATA"]
[]
[null,null,"PAGO / NÃO PAGO"]

{"sheet":"DADOS","index":3,"n_rows":42,"n_cols":7,"rows_kept":42,"cut":false,"hidden":false,"merged":[]}
["DESCRIÇÃO ",null,null,"PARCELAS",null,null,"SITUAÇÃO"]
[]
["Almoço p/ Marli-Arthur - 1ª Quinz",null,null,1,null,null,"NÃO PAGO"]
["Almoço p/ Marli-Arthur - 2ª Quinz",null,null,2,null,null,"PAGO"]
["Boleto Nubank Marli",null,null,3]
["Cartão Credicard On",null,null,4]
["Cartão Meu Cartão Renner",null,null,5]
["Cartão NUBank",null,null,6]
["Cartão Quero Quero",null,null,7]
["Cartão Super Mano",null,null,8]
["Cartão SupperCard",null,null,9]
["Cartão Zaffari Bourbom",null,null,10]
["Combustivel - C3",null,null,11]
["compra de gás de cozinha",null,null,12]
["Compra de Ração e Remédios p/ cachorros e gatos",null,null,13]
["Conta de Água",null,null,14]
["Conta de Luz",null,null,15]
["Conta de Luz da Camila",null,null,16]
["Fatura da TIM - WhatsApp",null,null,17]
["Financiamento BV - Citroen C3",null,null,18]
["Hipercard",null,null,19]
["IPTU 2022",null,null,20]
["IPVA C3",null,null,21]
["Licenciamento do Carro - Detran",null,null,22]
["Padaria do Aurélio",null,null,23]
["Presente da Camila de Niver.",null,null,24]
["Recarga Oi",null,null,25]
["Recarga TV BOX",null,null,26]
["SEBRATEL",null,null,27]
["Valmir - Pesquisa Vazamentos",null,null,28]
["Bolachas do Joaquim",null,null,29]
["Valmir - Troca Registro ",null,null,30]
["Compras no Mercado à Dinheiro",null,null,31]
["Serviço de Capina - Irmão Sonia",null,null,32]
["Pagamnetos para Dentista",null,null,33]
["Loja de Roupas Blitz",null,null,34]
[null,null,null,35]
[null,null,null,36]
[null,null,null,37]
[null,null,null,38]
[null,null,null,39]
[null,null,null,40]

{"sheet":"EMPRESTIMOS","index":4,"n_rows":35,"n_cols":17,"rows_kept":35,"cut":false,"hidden":false,"merged":[]}
[]
[null,null,null,null,null,null,null,null,null,null,null,null,null,null,"ARTHUR",null,"Fev"]
[null,null,null,null,null,null,null,null,null,null,null,null,null,null,"CHICA",null,"Mar"]
[null,null,null,null,null,null,null,null,null,null,null,null,null,null,"MANA",null,"Abr"]
[null,null,null,null,null,null,null,null,null,null,null,null,null,null,"MARLI",null,"Mai"]
[null,null,null,null,null,null,null,null,null,null,null,null,null,null,null,null,"Jun"]
[null,null,null,null,null,null,null,null,null,null,null,null,null,null,null,null,"Jul"]
[null,null,null,null,null,null,null,null,null,null,null,null,null,null,null,null,"Ago"]
[null,null,null,null,null,null,null,null,null,null,null,null,null,null,null,null,"Set"]
[null,null,null,null,null,null,null,null,null,null,null,null,"NOME","MÊS","SITUAÇÃO",null,"Out"]
[null,null,null,null,null,null,null,null,null,null,null,null,"ARTHUR","Set","NÃO PAGO",null,"Nov"]
[null,null,null,null,null,null,null,null,null,null,null,null,"TOTAL GASTO",null,{"$f":"SUMIFS(TAB_EMPRESTIMOS[VALOR],TAB_EMPRESTIMOS[NOME],M11,TAB_EMPRESTIMOS[MÊS],N11,TAB_EMPRESTIMOS[SITUAÇÃO],\"NÃO PAGO\")","v":264},null,"Dez"]
[null,"ID","NOME","DESCRIÇÃO","VALOR","DATA PAGTO","MÊS","SITUAÇÃO"]
[null,{"$f":"IF(C14=\"\",\"\",ROW(B14)-3)","v":11},"MARLI","Emprestimo p/ Camila quitar cartão",1430,"2022-07-02",{"$f":"PROPER(TEXT(TAB_EMPRESTIMOS[DATA PAGTO],\"MMM\"))","v":"Jul"},"NÃO PAGO"]
[null,12,"ARTHUR","Escada  4 degraus - Irmãos Farias",130,"2022-08-30",{"$f":"PROPER(TEXT(TAB_EMPRESTIMOS[DATA PAGTO],\"MMM\"))","v":"Ago"},"PAGO"]
[null,13,"ARTHUR","Kit reparo registro gaveta",47,"2022-08-30",{"$f":"PROPER(TEXT(TAB_EMPRESTIMOS[DATA PAGTO],\"MMM\"))","v":"Ago"},"PAGO"]
[null,14,"ARTHUR","Compra de peças para Maq. Lavar",62,"2022-08-30",{"$f":"PROPER(TEXT(TAB_EMPRESTIMOS[DATA PAGTO],\"MMM\"))","v":"Ago"},"PAGO"]
[null,15,"CHICA","Emprestimo.",200,"2022-09-06",{"$f":"PROPER(TEXT(TAB_EMPRESTIMOS[DATA PAGTO],\"MMM\"))","v":"Set"},"PAGO"]
[null,16,"ARTHUR","Almoço de Agosto",125,"2022-08-30",{"$f":"PROPER(TEXT(TAB_EMPRESTIMOS[DATA PAGTO],\"MMM\"))","v":"Ago"},"PAGO"]
[null,{"$f":"IF(C20=\"\",\"\",ROW(B20)-3)","v":17},"ARTHUR","Almoço de Setembro",264,"2022-09-10",{"$f":"PROPER(TEXT(TAB_EMPRESTIMOS[DATA PAGTO],\"MMM\"))","v":"Set"},"NÃO PAGO"]
[null,18,"ARTHUR","Canopla dos lustres",65,"2022-07-10",{"$f":"PROPER(TEXT(TAB_EMPRESTIMOS[DATA PAGTO],\"MMM\"))","v":"Jul"},"PAGO"]
[null,19,"ARTHUR","Pagamento Almoço Jun/22",115,"2022-07-10",{"$f":"PROPER(TEXT(TAB_EMPRESTIMOS[DATA PAGTO],\"MMM\"))","v":"Jul"},"PAGO"]
[null,20,"ARTHUR","Ultima Parcela IPVA",132,"2022-07-10",{"$f":"PROPER(TEXT(TAB_EMPRESTIMOS[DATA PAGTO],\"MMM\"))","v":"Jul"},"PAGO"]
[null,21,"ARTHUR","Pagto metade Sagú",10,"2022-07-10",{"$f":"PROPER(TEXT(TAB_EMPRESTIMOS[DATA PAGTO],\"MMM\"))","v":"Jul"},"PAGO"]
[null,22,"ARTHUR","Compra Caneca Caveira",99,"2022-07-10",{"$f":"PROPER(TEXT(TAB_EMPRESTIMOS[DATA PAGTO],\"MMM\"))","v":"Jul"},"PAGO"]
[null,23,"ARTHUR","Pagamento Almoço Jul/22",115,"2022-07-10",{"$f":"PROPER(TEXT(TAB_EMPRESTIMOS[DATA PAGTO],\"MMM\"))","v":"Jul"},"PAGO"]
[null,24,"MANA","Emprestimo ",80,"2022-08-01",{"$f":"PROPER(TEXT(TAB_EMPRESTIMOS[DATA PAGTO],\"MMM\"))","v":"Ago"},"PAGO"]
[null,25,"MARLI","Restante dinheiro bolachas",52,"2022-08-01",{"$f":"PROPER(TEXT(TAB_EMPRESTIMOS[DATA PAGTO],\"MMM\"))","v":"Ago"},"PAGO"]
[null,26,"ARTHUR","Pagamento Almoço Ago/22",115,"2022-08-10",{"$f":"PROPER(TEXT(TAB_EMPRESTIMOS[DATA PAGTO],\"MMM\"))","v":"Ago"},"PAGO"]
[null,27,"ARTHUR","Compra Mangueira Pia Banho",18,"2022-08-10",{"$f":"PROPER(TEXT(TAB_EMPRESTIMOS[DATA PAGTO],\"MMM\"))","v":"Ago"},"PAGO"]
[null,28,"ARTHUR","Galão de Agua - Moacir",12,"2022-08-10",{"$f":"PROPER(TEXT(TAB_EMPRESTIMOS[DATA PAGTO],\"MMM\"))","v":"Ago"},"PAGO"]
[null,29,"ARTHUR","Balas Canudinho - SuperMano",5,"2022-08-10",{"$f":"PROPER(TEXT(TAB_EMPRESTIMOS[DATA PAGTO],\"MMM\"))","v":"Ago"},"PAGO"]
[null,"",null,null,null,null,{"$f":"PROPER(TEXT(TAB_EMPRESTIMOS[DATA PAGTO],\"MMM\"))","v":"Jan"}]
[null,{"$f":"IF(C34=\"\",\"\",ROW(B34)-3)","v":31},"CHICA","Emprestimo",200,"2022-10-05",{"$f":"PROPER(TEXT(TAB_EMPRESTIMOS[DATA PAGTO],\"MMM\"))","v":"Out"},"NÃO PAGO"]
[null,{"$f":"IF(C35=\"\",\"\",ROW(B35)-3)","v":""},null,null,null,null,{"$f":"PROPER(TEXT(TAB_EMPRESTIMOS[DATA PAGTO],\"MMM\"))","v":"Jan"}]

{"sheet":"TOTAL EMPRESTADO","index":5,"n_rows":15,"n_cols":8,"rows_kept":15,"cut":false,"hidden":false,"merged":[]}
[]
[]
[null,null,null,null,"ANO","PERIODO","TOTAL DO MÊS","STATUS"]
[null,null,null,null,{"$f":"YEAR(TODAY())","v":2022},"Jul",{"$f":"SUMIFS(TAB_EMPRESTIMOS[VALOR],TAB_EMPRESTIMOS[SITUAÇÃO],\"NÃO PAGO\",TAB_EMPRESTIMOS[MÊS],Tabela6[[#This Row],[PERIODO]])","v":1430},{"$f":"IF(Tabela6[TOTAL DO MÊS]<>0,\"EM HAVER\",\"QUITADO\")","v":"EM HAVER"}]
[null,null,null,null,2022,"Ago",{"$f":"SUMIFS(TAB_EMPRESTIMOS[VALOR],TAB_EMPRESTIMOS[SITUAÇÃO],\"NÃO PAGO\",TAB_EMPRESTIMOS[MÊS],Tabela6[[#This Row],[PERIODO]])","v":0},{"$f":"IF(Tabela6[TOTAL DO MÊS]<>0,\"EM HAVER\",\"QUITADO\")","v":"QUITADO"}]
[null,null,null,null,2022,"Set",{"$f":"SUMIFS(TAB_EMPRESTIMOS[VALOR],TAB_EMPRESTIMOS[SITUAÇÃO],\"NÃO PAGO\",TAB_EMPRESTIMOS[MÊS],Tabela6[[#This Row],[PERIODO]])","v":264},{"$f":"IF(Tabela6[TOTAL DO MÊS]<>0,\"EM HAVER\",\"QUITADO\")","v":"EM HAVER"}]
[null,null,null,null,2022,"Jan",{"$f":"SUMIFS(TAB_EMPRESTIMOS[VALOR],TAB_EMPRESTIMOS[SITUAÇÃO],\"NÃO PAGO\",TAB_EMPRESTIMOS[MÊS],Tabela6[[#This Row],[PERIODO]])","v":0},{"$f":"IF(Tabela6[TOTAL DO MÊS]<>0,\"EM HAVER\",\"QUITADO\")","v":"QUITADO"}]
[null,null,null,null,2022,"Fev",{"$f":"SUMIFS(TAB_EMPRESTIMOS[VALOR],TAB_EMPRESTIMOS[SITUAÇÃO],\"NÃO PAGO\",TAB_EMPRESTIMOS[MÊS],Tabela6[[#This Row],[PERIODO]])","v":0},{"$f":"IF(Tabela6[TOTAL DO MÊS]<>0,\"EM HAVER\",\"QUITADO\")","v":"QUITADO"}]
[null,null,null,null,2022,"Mar",{"$f":"SUMIFS(TAB_EMPRESTIMOS[VALOR],TAB_EMPRESTIMOS[SITUAÇÃO],\"NÃO PAGO\",TAB_EMPRESTIMOS[MÊS],Tabela6[[#This Row],[PERIODO]])","v":0},{"$f":"IF(Tabela6[TOTAL DO MÊS]<>0,\"EM HAVER\",\"QUITADO\")","v":"QUITADO"}]
[null,null,null,null,2022,"Abr",{"$f":"SUMIFS(TAB_EMPRESTIMOS[VALOR],TAB_EMPRESTIMOS[SITUAÇÃO],\"NÃO PAGO\",TAB_EMPRESTIMOS[MÊS],Tabela6[[#This Row],[PERIODO]])","v":0},{"$f":"IF(Tabela6[TOTAL DO MÊS]<>0,\"EM HAVER\",\"QUITADO\")","v":"QUITADO"}]
[null,null,null,null,2022,"Mai",{"$f":"SUMIFS(TAB_EMPRESTIMOS[VALOR],TAB_EMPRESTIMOS[SITUAÇÃO],\"NÃO PAGO\",TAB_EMPRESTIMOS[MÊS],Tabela6[[#This Row],[PERIODO]])","v":0},{"$f":"IF(Tabela6[TOTAL DO MÊS]<>0,\"EM HAVER\",\"QUITADO\")","v":"QUITADO"}]
[null,null,null,null,2022,"Jun",{"$f":"SUMIFS(TAB_EMPRESTIMOS[VALOR],TAB_EMPRESTIMOS[SITUAÇÃO],\"NÃO PAGO\",TAB_EMPRESTIMOS[MÊS],Tabela6[[#This Row],[PERIODO]])","v":0},{"$f":"IF(Tabela6[TOTAL DO MÊS]<>0,\"EM HAVER\",\"QUITADO\")","v":"QUITADO"}]
[null,null,null,null,2022,"Out",{"$f":"SUMIFS(TAB_EMPRESTIMOS[VALOR],TAB_EMPRESTIMOS[SITUAÇÃO],\"NÃO PAGO\",TAB_EMPRESTIMOS[MÊS],Tabela6[[#This Row],[PERIODO]])","v":200},{"$f":"IF(Tabela6[TOTAL DO MÊS]<>0,\"EM HAVER\",\"QUITADO\")","v":"EM HAVER"}]
[null,null,null,null,2022,"Nov",{"$f":"SUMIFS(TAB_EMPRESTIMOS[VALOR],TAB_EMPRESTIMOS[SITUAÇÃO],\"NÃO PAGO\",TAB_EMPRESTIMOS[MÊS],Tabela6[[#This Row],[PERIODO]])","v":0},{"$f":"IF(Tabela6[TOTAL DO MÊS]<>0,\"EM HAVER\",\"QUITADO\")","v":"QUITADO"}]
[null,null,null,null,2022,"Dez",{"$f":"SUMIFS(TAB_EMPRESTIMOS[VALOR],TAB_EMPRESTIMOS[SITUAÇÃO],\"NÃO PAGO\",TAB_EMPRESTIMOS[MÊS],Tabela6[[#This Row],[PERIODO]])","v":0},{"$f":"IF(Tabela6[TOTAL DO MÊS]<>0,\"EM HAVER\",\"QUITADO\")","v":"QUITADO"}]

{"sheet":"GRÁFICOS","index":6,"n_rows":8,"n_cols":13,"rows_kept":8,"cut":false,"hidden":false,"merged":[]}
[]
[]
[null,null,null,null,null,null,null,null,null,null,"MESES","Soma de TOTAL DO MÊS","Soma de TOTAL PAGO"]
[null,null,null,null,null,null,null,null,null,null,"Jun",4533.54,4533.54]
[null,null,null,null,null,null,null,null,null,null,"Jul",4682.4399999999996,4682.4399999999996]
[null,null,null,null,null,null,null,null,null,null,"Ago",4154.0300000000007,4154.0300000000007]
[null,null,null,null,null,null,null,null,null,null,"Set",4274.4100000000008,4038.4100000000008]
[null,null,null,null,null,null,null,null,null,null,"Total Geral",17644.420000000002,17408.420000000002]

{"sheet":"TOTALIZAÇÃO","index":7,"n_rows":19,"n_cols":7,"rows_kept":19,"cut":false,"hidden":false,"merged":[]}
[]
[]
[]
[]
[]
[]
[null,"ANO","MÊS","TOTAL DO MÊS","TOTAL PAGO","TOTAL EM HAVER","SITUAÇÃO"]
[null,{"$f":"YEAR(TODAY())","v":2022},"Jan",{"$f":"SUMIF(Lançamentos!$C$6:$C$96,TAB_TOTALIZAÇÃO[MÊS],Lançamentos!$G$6:$G$96)","v":0},{"$f":"TAB_TOTALIZAÇÃO[[#This Row],[TOTAL DO MÊS]]-TAB_TOTALIZAÇÃO[[#This Row],[TOTAL EM HAVER]]","v":0},{"$f":"SUMIF(Lançamentos!$C$6:$C$96,TAB_TOTALIZAÇÃO[MÊS],Lançamentos!$J$6:$J$96)","v":0},{"$f":"IF(TAB_TOTALIZAÇÃO[[#This Row],[TOTAL EM HAVER]]<>0,\"EM ANDAMENTO AINDA\",IF(TAB_TOTALIZAÇÃO[TOTAL EM HAVER]=0,\"TODAS AS CONTAS PAGAS\",IF(TAB_TOTALIZAÇÃO[[#This Row],[TOTAL EM HAVER]]=\"-\",\"\")))","v":"TODAS AS CONTAS PAGAS"}]
[null,2022,"Fev",{"$f":"SUMIF(Lançamentos!$C$6:$C$96,TAB_TOTALIZAÇÃO[MÊS],Lançamentos!$G$6:$G$96)","v":0},{"$f":"TAB_TOTALIZAÇÃO[[#This Row],[TOTAL DO MÊS]]-TAB_TOTALIZAÇÃO[[#This Row],[TOTAL EM HAVER]]","v":0},{"$f":"SUMIF(Lançamentos!$C$6:$C$96,TAB_TOTALIZAÇÃO[MÊS],Lançamentos!$J$6:$J$96)","v":0},{"$f":"IF(TAB_TOTALIZAÇÃO[[#This Row],[TOTAL EM HAVER]]<>0,\"EM ANDAMENTO AINDA\",IF(TAB_TOTALIZAÇÃO[TOTAL EM HAVER]=0,\"TODAS AS CONTAS PAGAS\",IF(TAB_TOTALIZAÇÃO[[#This Row],[TOTAL EM HAVER]]=\"-\",\"\")))","v":"TODAS AS CONTAS PAGAS"}]
[null,2022,"Mar",{"$f":"SUMIF(Lançamentos!$C$6:$C$96,TAB_TOTALIZAÇÃO[MÊS],Lançamentos!$G$6:$G$96)","v":0},{"$f":"TAB_TOTALIZAÇÃO[[#This Row],[TOTAL DO MÊS]]-TAB_TOTALIZAÇÃO[[#This Row],[TOTAL EM HAVER]]","v":0},{"$f":"SUMIF(Lançamentos!$C$6:$C$96,TAB_TOTALIZAÇÃO[MÊS],Lançamentos!$J$6:$J$96)","v":0},{"$f":"IF(TAB_TOTALIZAÇÃO[[#This Row],[TOTAL EM HAVER]]<>0,\"EM ANDAMENTO AINDA\",IF(TAB_TOTALIZAÇÃO[TOTAL EM HAVER]=0,\"TODAS AS CONTAS PAGAS\",IF(TAB_TOTALIZAÇÃO[[#This Row],[TOTAL EM HAVER]]=\"-\",\"\")))","v":"TODAS AS CONTAS PAGAS"}]
[null,2022,"Abr",{"$f":"SUMIF(Lançamentos!$C$6:$C$96,TAB_TOTALIZAÇÃO[MÊS],Lançamentos!$G$6:$G$96)","v":0},{"$f":"TAB_TOTALIZAÇÃO[[#This Row],[TOTAL DO MÊS]]-TAB_TOTALIZAÇÃO[[#This Row],[TOTAL EM HAVER]]","v":0},{"$f":"SUMIF(Lançamentos!$C$6:$C$96,TAB_TOTALIZAÇÃO[MÊS],Lançamentos!$J$6:$J$96)","v":0},{"$f":"IF(TAB_TOTALIZAÇÃO[[#This Row],[TOTAL EM HAVER]]<>0,\"EM ANDAMENTO AINDA\",IF(TAB_TOTALIZAÇÃO[TOTAL EM HAVER]=0,\"TODAS AS CONTAS PAGAS\",IF(TAB_TOTALIZAÇÃO[[#This Row],[TOTAL EM HAVER]]=\"-\",\"\")))","v":"TODAS AS CONTAS PAGAS"}]
[null,2022,"Mai",{"$f":"SUMIF(Lançamentos!$C$6:$C$96,TAB_TOTALIZAÇÃO[MÊS],Lançamentos!$G$6:$G$96)","v":0},{"$f":"TAB_TOTALIZAÇÃO[[#This Row],[TOTAL DO MÊS]]-TAB_TOTALIZAÇÃO[[#This Row],[TOTAL EM HAVER]]","v":0},{"$f":"SUMIF(Lançamentos!$C$6:$C$96,TAB_TOTALIZAÇÃO[MÊS],Lançamentos!$J$6:$J$96)","v":0},{"$f":"IF(TAB_TOTALIZAÇÃO[[#This Row],[TOTAL EM HAVER]]<>0,\"EM ANDAMENTO AINDA\",IF(TAB_TOTALIZAÇÃO[TOTAL EM HAVER]=0,\"TODAS AS CONTAS PAGAS\",IF(TAB_TOTALIZAÇÃO[[#This Row],[TOTAL EM HAVER]]=\"-\",\"\")))","v":"TODAS AS CONTAS PAGAS"}]
[null,2022,"Jun",{"$f":"SUMIF(Lançamentos!$C$6:$C$96,TAB_TOTALIZAÇÃO[MÊS],Lançamentos!$G$6:$G$96)","v":4533.54},{"$f":"TAB_TOTALIZAÇÃO[[#This Row],[TOTAL DO MÊS]]-TAB_TOTALIZAÇÃO[[#This Row],[TOTAL EM HAVER]]","v":4533.54},{"$f":"SUMIF(Lançamentos!$C$6:$C$96,TAB_TOTALIZAÇÃO[MÊS],Lançamentos!$J$6:$J$96)","v":0},{"$f":"IF(TAB_TOTALIZAÇÃO[[#This Row],[TOTAL EM HAVER]]<>0,\"EM ANDAMENTO AINDA\",IF(TAB_TOTALIZAÇÃO[TOTAL EM HAVER]=0,\"TODAS AS CONTAS PAGAS\",IF(TAB_TOTALIZAÇÃO[[#This Row],[TOTAL EM HAVER]]=\"-\",\"\")))","v":"TODAS AS CONTAS PAGAS"}]
[null,2022,"Jul",{"$f":"SUMIF(Lançamentos!$C$6:$C$96,TAB_TOTALIZAÇÃO[MÊS],Lançamentos!$G$6:$G$96)","v":4682.4399999999996},{"$f":"TAB_TOTALIZAÇÃO[[#This Row],[TOTAL DO MÊS]]-TAB_TOTALIZAÇÃO[[#This Row],[TOTAL EM HAVER]]","v":4682.4399999999996},{"$f":"SUMIF(Lançamentos!$C$6:$C$96,TAB_TOTALIZAÇÃO[MÊS],Lançamentos!$J$6:$J$96)","v":0},{"$f":"IF(TAB_TOTALIZAÇÃO[[#This Row],[TOTAL EM HAVER]]<>0,\"EM ANDAMENTO AINDA\",IF(TAB_TOTALIZAÇÃO[TOTAL EM HAVER]=0,\"TODAS AS CONTAS PAGAS\",IF(TAB_TOTALIZAÇÃO[[#This Row],[TOTAL EM HAVER]]=\"-\",\"\")))","v":"TODAS AS CONTAS PAGAS"}]
[null,{"$f":"YEAR(TODAY())","v":2022},"Ago",{"$f":"SUMIF(Lançamentos!$C$6:$C$96,TAB_TOTALIZAÇÃO[MÊS],Lançamentos!$G$6:$G$96)","v":4154.0300000000007},{"$f":"TAB_TOTALIZAÇÃO[[#This Row],[TOTAL DO MÊS]]-TAB_TOTALIZAÇÃO[[#This Row],[TOTAL EM HAVER]]","v":4154.0300000000007},{"$f":"SUMIF(Lançamentos!$C$6:$C$96,TAB_TOTALIZAÇÃO[MÊS],Lançamentos!$J$6:$J$96)","v":0},{"$f":"IF(TAB_TOTALIZAÇÃO[[#This Row],[TOTAL EM HAVER]]<>0,\"EM ANDAMENTO AINDA\",IF(TAB_TOTALIZAÇÃO[TOTAL EM HAVER]=0,\"TODAS AS CONTAS PAGAS\",IF(TAB_TOTALIZAÇÃO[[#This Row],[TOTAL EM HAVER]]=\"-\",\"\")))","v":"TODAS AS CONTAS PAGAS"}]
[null,{"$f":"YEAR(TODAY())","v":2022},"Set",{"$f":"SUMIF(Lançamentos!$C$6:$C$96,TAB_TOTALIZAÇÃO[MÊS],Lançamentos!$G$6:$G$96)","v":4273.4100000000008},{"$f":"TAB_TOTALIZAÇÃO[[#This Row],[TOTAL DO MÊS]]-TAB_TOTALIZAÇÃO[[#This Row],[TOTAL EM HAVER]]","v":4038.4100000000008},{"$f":"SUMIF(Lançamentos!$C$6:$C$96,TAB_TOTALIZAÇÃO[MÊS],Lançamentos!$J$6:$J$96)","v":235},{"$f":"IF(TAB_TOTALIZAÇÃO[[#This Row],[TOTAL EM HAVER]]<>0,\"EM ANDAMENTO AINDA\",IF(TAB_TOTALIZAÇÃO[TOTAL EM HAVER]=0,\"TODAS AS CONTAS PAGAS\",IF(TAB_TOTALIZAÇÃO[[#This Row],[TOTAL EM HAVER]]=\"-\",\"\")))","v":"EM ANDAMENTO AINDA"}]
[null,{"$f":"YEAR(TODAY())","v":2022},"Out",{"$f":"SUMIF(Lançamentos!$C$6:$C$96,TAB_TOTALIZAÇÃO[MÊS],Lançamentos!$G$6:$G$96)","v":0},{"$f":"TAB_TOTALIZAÇÃO[[#This Row],[TOTAL DO MÊS]]-TAB_TOTALIZAÇÃO[[#This Row],[TOTAL EM HAVER]]","v":0},{"$f":"SUMIF(Lançamentos!$C$6:$C$96,TAB_TOTALIZAÇÃO[MÊS],Lançamentos!$J$6:$J$96)","v":0},{"$f":"IF(TAB_TOTALIZAÇÃO[[#This Row],[TOTAL EM HAVER]]<>0,\"EM ANDAMENTO AINDA\",IF(TAB_TOTALIZAÇÃO[TOTAL EM HAVER]=0,\"TODAS AS CONTAS PAGAS\",IF(TAB_TOTALIZAÇÃO[[#This Row],[TOTAL EM HAVER]]=\"-\",\"\")))","v":"TODAS AS CONTAS PAGAS"}]
[null,{"$f":"YEAR(TODAY())","v":2022},"Nov",{"$f":"SUMIF(Lançamentos!$C$6:$C$96,TAB_TOTALIZAÇÃO[MÊS],Lançamentos!$G$6:$G$96)","v":0},{"$f":"TAB_TOTALIZAÇÃO[[#This Row],[TOTAL DO MÊS]]-TAB_TOTALIZAÇÃO[[#This Row],[TOTAL EM HAVER]]","v":0},{"$f":"SUMIF(Lançamentos!$C$6:$C$96,TAB_TOTALIZAÇÃO[MÊS],Lançamentos!$J$6:$J$96)","v":0},{"$f":"IF(TAB_TOTALIZAÇÃO[[#This Row],[TOTAL EM HAVER]]<>0,\"EM ANDAMENTO AINDA\",IF(TAB_TOTALIZAÇÃO[TOTAL EM HAVER]=0,\"TODAS AS CONTAS PAGAS\",IF(TAB_TOTALIZAÇÃO[[#This Row],[TOTAL EM HAVER]]=\"-\",\"\")))","v":"TODAS AS CONTAS PAGAS"}]
[null,{"$f":"YEAR(TODAY())","v":2022},"Dez",{"$f":"SUMIF(Lançamentos!$C$6:$C$96,TAB_TOTALIZAÇÃO[MÊS],Lançamentos!$G$6:$G$96)","v":0},{"$f":"TAB_TOTALIZAÇÃO[[#This Row],[TOTAL DO MÊS]]-TAB_TOTALIZAÇÃO[[#This Row],[TOTAL EM HAVER]]","v":0},{"$f":"SUMIF(Lançamentos!$C$6:$C$96,TAB_TOTALIZAÇÃO[MÊS],Lançamentos!$J$6:$J$96)","v":0},{"$f":"IF(TAB_TOTALIZAÇÃO[[#This Row],[TOTAL EM HAVER]]<>0,\"EM ANDAMENTO AINDA\",IF(TAB_TOTALIZAÇÃO[TOTAL EM HAVER]=0,\"TODAS AS CONTAS PAGAS\",IF(TAB_TOTALIZAÇÃO[[#This Row],[TOTAL EM HAVER]]=\"-\",\"\")))","v":"TODAS AS CONTAS PAGAS"}]

{"sheet":"RELATÓRIO DE GASTOS MENSAIS","index":8,"n_rows":50,"n_cols":2,"rows_kept":50,"cut":false,"hidden":false,"merged":[]}
[null,1]
[null,1]
[null,1]
[null,1]
[null,1]
[null,1]
[null,1]
[null,1]
[null,1]
[null,1]
[null,1]
[null,1]
[null,1]
[null,1]
[null,1]
[null,1]
[null,1]
[null,1]
[null,1]
[null,1]
[null,1]
[null,1]
[null,1]
[null,1]
[null,1]
[null,1]
[null,1]
[null,1]
[null,1]
[null,1]
[null,1]
[null,1]
[null,1]
[null,1]
[null,1]
[null,1]
[null,1]
[null,1]
[null,1]
[null,1]
[null,1]
[null,1]
[null,1]
[null,1]
[null,1]
[null,1]
[null,1]
[null,1]
[null,1]
[null,1]